bitfinex/quotes_ETHUSD_20230111
["timestamp","ask_amount","ask_price","bid_price","bid_amount"]
[1673420913759,1.70309352,1334.0,1333.9,29.92859613]
[1673420915532,1.70309352,1334.0,1333.9,18.53802085]
[1673420915749,1.70309352,1334.0,1333.9,2.98426254]
[1673420915964,1.70309352,1334.0,1333.9,2.91826254]
[1673420917419,1.70309352,1334.0,1333.9,10.41507254]
[1673420917600,1.70309352,1334.0,1333.9,12.16165316]
[1673420917809,1.70309352,1334.0,1333.9,19.65846316]
[1673420918385,1.70309352,1334.0,1333.9,18.53802085]
[1673420918897,1.70309352,1334.0,1333.9,11.04121085]
[1673420919211,1.70309352,1334.0,1333.9,12.1617798]
[1673420919406,2.94061004,1334.0,1333.9,2.98438918]
[1673420919612,5.84819619,1334.0,1333.8,0.066]
[1673420919799,5.78785099,1334.0,1333.8,8.61787895]
[1673420920019,5.78785099,1334.0,1333.8,16.18124895]
[1673420920254,5.78785099,1334.0,1333.9,1.80882263]
[1673420920836,4.66526296,1334.0,1333.9,1.80882263]
[1673420921049,4.63261004,1334.0,1333.9,1.80882263]
[1673420921959,4.63261004,1334.0,1333.9,9.30563263]
[1673420922108,4.63261004,1334.0,1333.9,9.37163263]
[1673420922307,4.63261004,1334.0,1333.9,1.87482263]
[1673420922518,4.63261004,1334.0,1333.9,1.80882263]
[1673420923385,4.63261004,1334.0,1333.9,1.80837514]
[1673420925476,4.63261004,1334.0,1333.8,25.72255122]
[1673420925707,4.63261004,1334.0,1333.9,1.80834593]
[1673420926753,4.63261004,1334.0,1333.8,25.72255122]
[1673420926952,4.63261004,1334.0,1333.9,1.80831306]
[1673420927164,4.63261004,1334.0,1333.8,25.72255122]
[1673420928681,4.63261004,1334.0,1333.9,1.80859586]
[1673420928844,4.63261004,1334.0,1333.9,9.30540586]
[1673420929050,4.63261004,1334.0,1333.9,9.37140586]
[1673420929051,1.70309352,1334.0,1333.9,9.37140586]
[1673420929265,1.70309352,1334.0,1333.9,16.86821586]
[1673420929478,1.70309352,1334.0,1333.9,24.36502586]
[1673420930255,1.70080803,1334.0,1333.9,16.86821586]
[1673420930628,1.70080803,1334.0,1333.9,9.37140586]
[1673420931269,1.70080803,1334.0,1333.9,24.36502586]
[1673420931844,1.70080803,1334.0,1333.9,16.86821586]
[1673420932966,1.70080803,1334.0,1333.9,26.61393122]
[1673420936650,1.70080803,1334.0,1333.9,28.29451184]
[1673420936872,1.70080803,1334.0,1333.9,26.61393122]
[1673420940123,1.70080803,1334.0,1333.9,1.87459586]
[1673420940360,1.70080803,1334.0,1333.9,1.80859586]
[1673420941266,4.20080803,1334.0,1333.9,1.80859586]
[1673420941483,4.20080803,1334.0,1333.8,10.72834122]
[1673420942056,4.20080803,1334.0,1333.9,1.80816039]
[1673420942265,4.20080803,1334.0,1333.8,18.22571122]
[1673420942580,3.39280803,1334.0,1333.9,9.30496844]
[1673420942733,3.39280803,1334.0,1333.9,9.37096844]
[1673420943149,3.39280803,1334.0,1333.9,1.87415844]
[1673420943400,3.39280803,1334.0,1333.9,1.80815844]
[1673420944787,3.39180803,1334.0,1333.9,1.80815844]
[1673420944994,5.89180803,1334.0,1333.9,1.80815844]
[1673420945156,5.92446095,1334.0,1333.9,1.80815844]
[1673420945359,5.92446095,1334.0,1333.8,18.22522122]
[1673420947097,5.92446095,1334.0,1333.8,17.10465227]
[1673420947312,5.92446095,1334.0,1333.8,18.22522122]
[1673420947815,5.92446095,1334.0,1333.8,17.10465227]
[1673420949433,3.42446095,1334.0,1333.8,17.10465227]
[1673420949659,3.39180803,1334.0,1333.9,1.80841248]
[1673420949969,1.70080803,1334.0,1333.9,16.80203248]
[1673420950128,1.70080803,1334.0,1333.9,16.86803248]
[1673420951705,1.70080803,1334.0,1333.9,24.36484248]
[1673420954151,1.70080803,1334.0,1333.7,2.80366895]
[1673420954152,24.364,1333.9,1333.7,2.80366895]
[1673420954506,24.364,1333.9,1333.6,0.066]
[1673420954507,28.1718703,1333.8,1333.6,0.066]
[1673420954643,23.87680978,1333.7,1333.3,1.12168529]
[1673420954858,2.80850545,1333.5,1333.2,1.17107177]
[1673420955116,3.79766064,1333.4,1333.2,0.04938648]
[1673420955274,5.47666064,1333.4,1333.2,0.04938648]
[1673420955487,5.50931356,1333.4,1333.2,0.04938648]
[1673420957817,5.51292737,1333.4,1333.2,0.04938648]
[1673420960588,13.01269737,1333.4,1333.2,0.04938648]
[1673420960807,5.51292737,1333.4,1333.2,0.04938648]
[1673420961185,13.01254737,1333.4,1333.2,0.04938648]
[1673420963391,5.51292737,1333.4,1333.2,0.04938648]
[1673420963561,6.07562737,1333.4,1333.2,0.04938648]
[1673420966483,6.07562737,1333.4,1333.2,7.55006648]
[1673420966677,6.07562737,1333.4,1333.2,15.11681648]
[1673420966896,6.07562737,1333.4,1333.2,0.11538648]
[1673420967230,6.07562737,1333.4,1333.2,0.04938648]
[1673420968490,2.27796673,1333.4,1333.2,7.55006648]
[1673420968656,1.68261381,1333.4,1333.2,16.63417154]
[1673420969074,1.68261381,1333.4,1333.2,9.13342154]
[1673420969751,2.2506,1333.5,1333.2,9.13342154]
[1673420969965,6.04826064,1333.5,1333.2,9.13342154]
[1673420970153,13.58003356,1333.5,1333.2,1.63274154]
[1673420970350,13.58003356,1333.5,1333.2,1.56674154]
[1673420973904,13.58003356,1333.5,1333.2,0.04938648]
[1673420974119,6.08452737,1333.5,1333.2,7.54996648]
[1673420974326,6.08452737,1333.5,1333.2,7.61596648]
[1673420974906,6.08452737,1333.5,1333.2,15.11671648]
[1673420975847,6.081239,1333.5,1333.2,15.11671648]
[1673420978265,8.581239,1333.5,1333.2,7.61596648]
[1673420979092,6.081239,1333.5,1333.2,7.61596648]
[1673420979739,0.03265292,1333.5,1333.3,4.43264376]
[1673420979955,31.58365292,1333.8,1333.4,22.49886]
[1673420980100,1.72365292,1333.8,1333.4,26.99750376]
[1673420980317,1.72365292,1333.8,1333.4,7.56562]
[1673420980318,1.691,1333.8,1333.4,7.56562]
[1673420980573,16.68586,1333.8,1333.4,7.56562]
[1673420980779,16.71851292,1333.8,1333.4,8.39920031]
[1673420980995,9.22102292,1333.8,1333.4,8.39920031]
[1673420981186,9.22102292,1333.8,1333.4,26.57802031]
[1673420981187,1.72365292,1333.8,1333.4,26.57802031]
[1673420981367,4.191,1333.8,1333.4,26.57802031]
[1673420981577,11.68842,1333.8,1333.4,26.57802031]
[1673420981824,11.72107292,1333.8,1333.4,19.07840031]
[1673420982150,19.21849292,1333.8,1333.4,19.07840031]
[1673420983078,11.72107292,1333.8,1333.4,26.57802031]
[1673420983619,11.72107292,1333.8,1333.4,19.07840031]
[1673420984209,16.15371668,1333.8,1333.4,19.07617974]
[1673420984423,11.72107292,1333.8,1333.4,19.07417974]
[1673420984788,11.72107292,1333.8,1333.4,19.07617974]
[1673420985360,23.65113668,1333.8,1333.4,19.07617974]
[1673420985569,16.71849292,1333.8,1333.4,26.57579974]
[1673420985775,9.22107292,1333.8,1333.5,2.65757997]
[1673420986831,16.71849292,1333.8,1333.4,19.07815031]
[1673420988769,32.44621732,1333.8,1333.4,11.57878031]
[1673420988983,33.5696195,1333.8,1333.4,10.7452]
[1673420989773,29.13697574,1333.8,1333.4,10.7452]
[1673420989984,33.5696195,1333.8,1333.4,10.7452]
[1673420990980,9.18896,1333.7,1333.4,10.7452]
[1673420991193,9.22161292,1333.7,1333.4,12.5371177]
[1673420991344,9.22161292,1333.7,1333.4,10.7452]
[1673420991554,20.51723356,1333.7,1333.4,10.7452]
[1673420991768,5.52131356,1333.7,1333.4,10.7452]
[1673420992237,5.52131356,1333.7,1333.4,18.24476]
[1673420992451,1.691,1333.6,1333.4,18.24476]
[1673420992818,1.691,1333.6,1333.4,21.16225365]
[1673420993711,3.85166064,1333.7,1333.4,21.16225365]
[1673420993930,1.691,1333.6,1333.4,21.16225365]
[1673420994081,1.691,1333.6,1333.4,22.67259094]
[1673420994612,4.191,1333.6,1333.4,14.05134565]
[1673420994823,1.691,1333.6,1333.4,12.54100836]
[1673420996409,1.691,1333.6,1333.4,20.04061836]
[1673420996948,1.691,1333.6,1333.4,21.16230365]
[1673420997165,1.691,1333.6,1333.4,12.54100836]
[1673420997481,1.691,1333.6,1333.4,10.7452]
[1673420998077,0.066,1333.7,1333.4,32.76148259]
[1673420998323,0.066,1333.8,1333.6,1.12168529]
[1673420998513,16.6415,1333.9,1333.7,22.49379]
[1673420998514,16.7075,1333.9,1333.7,22.49379]
[1673420998745,3.86366064,1333.9,1333.7,22.55979]
[1673420998912,3.79766064,1333.9,1333.7,22.55979]
[1673420999125,35.5493113,1334.0,1333.7,22.55979]
[1673420999438,12.74919357,1334.0,1333.7,22.55979]
[1673420999709,11.98697194,1334.0,1333.7,22.55979]
[1673421000090,11.98697194,1334.0,1333.7,15.06186]
[1673421000328,11.98697194,1334.0,1333.7,7.56393]
[1673421000489,12.74919357,1334.0,1333.7,7.56393]
[1673421000696,12.74919357,1334.0,1333.7,0.066]
[1673421000947,12.74919357,1334.0,1333.6,36.08128365]
[1673421001166,20.24552357,1334.0,1333.6,40.89747038]
[1673421001342,2.5,1333.9,1333.6,30.48157673]
[1673421001553,2.5,1333.9,1333.6,25.0016903]
[1673421002381,2.5,1333.9,1333.6,32.5001903]
[1673421002598,2.5,1333.9,1333.6,39.99821315]
[1673421002809,0.002,1333.9,1333.7,11.49758131]
[1673421003017,2.59300984,1333.9,1333.7,11.56358131]
[1673421003259,10.24919357,1334.0,1333.7,4.06582131]
[1673421003260,6.45153293,1334.0,1333.7,4.06582131]
[1673421003545,13.38560293,1334.0,1333.7,3.99982131]
[1673421003756,14.50739763,1334.0,1333.7,3.99982131]
[1673421004752,4.56360273,1334.0,1333.7,3.99982131]
[1673421004921,5.25948449,1334.0,1333.7,11.49774131]
[1673421005135,5.32548449,1334.0,1333.7,11.56374131]
[1673421006802,4.56360273,1334.0,1333.7,11.56374131]
[1673421007020,4.56360273,1334.0,1333.7,19.06167131]
[1673421007021,4.49760273,1334.0,1333.7,19.06167131]
[1673421008862,4.49760273,1334.0,1333.7,11.56374131]
[1673421009231,4.49960273,1334.0,1333.7,11.56174131]
[1673421009446,4.49760273,1334.0,1333.7,11.56374131]
[1673421009656,11.99387273,1334.0,1333.7,4.06582131]
[1673421009909,12.05987273,1334.0,1333.6,39.10126202]
[1673421010227,12.05987273,1334.0,1333.6,22.98311673]
[1673421010228,22.00324555,1334.0,1333.6,22.98311673]
[1673421010446,22.00324555,1334.0,1333.6,25.00019453]
[1673421010968,14.50697555,1334.0,1333.6,25.00019453]
[1673421011129,14.50697555,1334.0,1333.6,39.99719453]
[1673421011345,14.50697555,1334.0,1333.6,37.98011673]
[1673421011806,14.50697555,1334.0,1333.7,3.79801167]
[1673421012025,7.01070555,1334.0,1333.7,11.29586167]
[1673421012235,5.32560228,1334.0,1333.7,11.36186167]
[1673421012390,3.65060228,1334.0,1333.7,11.36186167]
[1673421012597,3.58460228,1334.0,1333.7,11.36186167]
[1673421013254,3.58460228,1334.0,1333.7,18.85979167]
[1673421013601,10.31887273,1334.0,1333.7,3.86401167]
[1673421013772,10.38487273,1334.0,1333.7,3.79801167]
[1673421015025,11.14694564,1334.0,1333.7,3.79801167]
[1673421016364,11.14694564,1334.0,1333.6,36.30188308]
[1673421016570,11.14694564,1334.0,1333.6,40.77274794]
[1673421016766,12.83204891,1334.0,1333.6,25.66499]
[1673421016982,12.83204891,1334.0,1333.6,27.68271361]
[1673421017573,12.83204891,1334.0,1333.6,33.16349]
[1673421017783,12.83204891,1334.0,1333.6,40.01956187]
[1673421018037,12.83204891,1334.0,1333.6,38.00183826]
[1673421018421,12.83204891,1334.0,1333.6,43.59438841]
[1673421018874,12.83204891,1334.0,1333.7,1.76438444]
[1673421019290,12.83204891,1334.0,1333.6,39.12352355]
[1673421019291,1.1217947,1333.9,1333.6,39.12352355]
[1673421019508,15.33204891,1334.0,1333.7,5.67678153]
[1673421019681,15.33204891,1334.0,1333.7,0.066]
[1673421019888,15.33204891,1334.0,1333.6,36.23742709]
[1673421019889,15.33204891,1334.0,1333.6,36.30342709]
[1673421020138,15.33204891,1334.0,1333.7,1.76442322]
[1673421020352,12.83204891,1334.0,1333.6,36.30342709]
[1673421020564,1.1217947,1333.9,1333.6,36.30342709]
[1673421020885,1.1217947,1333.9,1333.7,3.63034271]
[1673421021107,15.33204891,1334.0,1333.7,3.63034271]
[1673421021254,15.33204891,1334.0,1333.6,36.30342709]
[1673421021255,12.83204891,1334.0,1333.6,36.30342709]
[1673421021464,12.83204891,1334.0,1333.6,28.80492709]
[1673421022773,1.1217947,1333.9,1333.6,28.80492709]
[1673421022965,1.1217947,1333.9,1333.6,36.30342709]
[1673421024147,1.1217947,1333.9,1333.6,36.2971252]
[1673421024336,1.1217947,1333.9,1333.6,41.13489609]
[1673421024543,1.1217947,1333.9,1333.6,39.11664429]
[1673421024936,1.21480279,1333.9,1333.6,39.11664429]
[1673421025609,1.21680279,1333.9,1333.6,39.11453429]
[1673421025787,1.21480279,1333.9,1333.6,39.11653429]
[1673421027357,4.21398421,1334.0,1333.6,39.11653429]
[1673421027358,5.33577891,1334.0,1333.7,10.19492137]
[1673421027572,4.573706,1334.0,1333.7,23.49133249]
[1673421027802,2.82260273,1334.0,1333.7,30.98926249]
[1673421028963,2.82260273,1334.0,1333.7,32.11094778]
[1673421029139,2.82260273,1334.0,1333.7,29.61094778]
[1673421029349,2.82260273,1334.0,1333.7,27.59241872]
[1673421029554,2.82260273,1334.0,1333.7,29.61094778]
[1673421030929,2.82260273,1334.0,1333.7,28.48926249]
[1673421031164,2.82260273,1334.0,1333.7,29.61094778]
[1673421031708,2.82260273,1334.0,1333.7,28.48926249]
[1673421032399,2.82260273,1334.0,1333.7,29.61094778]
[1673421032850,2.82260273,1334.0,1333.8,1.76524819]
[1673421033019,4.507706,1334.0,1333.8,14.99411]
[1673421033401,4.507706,1334.0,1333.8,15.06011]
[1673421035257,1.1217947,1333.9,1333.8,7.56289]
[1673421035473,4.573706,1334.0,1333.8,9.32869749]
[1673421035693,4.507706,1334.0,1333.8,7.56289]
[1673421036075,4.507706,1334.0,1333.8,0.066]
[1673421036295,4.507706,1334.0,1333.7,35.55406435]
[1673421036632,4.507706,1334.0,1333.8,1.76587875]
[1673421036633,5.26977891,1334.0,1333.8,1.76587875]
[1673421036839,1.21479754,1333.9,1333.8,11.28434721]
[1673421037014,1.21479754,1333.9,1333.8,1.83187875]
[1673421037378,1.21479754,1333.9,1333.8,1.76587875]
[1673421037988,4.573706,1334.0,1333.8,25.37967404]
[1673421038222,2.82260273,1334.0,1333.9,1.76587875]
[1673421038382,2.91559939,1334.0,1333.9,1.76587875]
[1673421040425,2.91559939,1334.0,1333.8,7.35415601]
[1673421040627,2.82260273,1334.0,1333.8,5.33305755]
[1673421040850,4.507706,1334.0,1333.8,4.21137226]
[1673421041019,12.003956,1334.0,1333.8,6.16647072]
[1673421041225,1.1217947,1333.9,1333.8,0.066]
[1673421041585,1.1217947,1333.9,1333.8,1.76664607]
[1673421043467,1.21479796,1333.9,1333.8,1.76664607]
[1673421043838,1.1217947,1333.9,1333.8,1.76664607]
[1673421044057,1.21479715,1333.9,1333.8,1.76664607]
[1673421044262,1.1217947,1333.9,1333.8,1.76664607]
[1673421044526,1.21479888,1333.9,1333.8,1.76664607]
[1673421044682,1.21479888,1333.9,1333.7,13.06398375]
[1673421044894,1.21479888,1333.9,1333.8,1.76674035]
[1673421046471,1.21479888,1333.9,1333.8,1.76421464]
[1673421050822,2.88860273,1334.0,1333.8,9.03874845]
[1673421051149,2.88860273,1334.0,1333.8,29.83264381]
[1673421051150,1.70080803,1334.0,1333.8,29.83264381]
[1673421051368,1.70080803,1334.0,1333.9,1.12168529]
[1673421051576,1.70080803,1334.0,1333.9,11.80386952]
[1673421051891,1.70080803,1334.0,1333.9,11.86986952]
[1673421052252,1.70080803,1334.0,1333.9,4.37305952]
[1673421052516,1.70080803,1334.0,1333.9,4.30705952]
[1673421052995,1.70080803,1334.0,1333.9,11.80386952]
[1673421053209,1.70080803,1334.0,1333.9,11.86986952]
[1673421053408,1.70080803,1334.0,1333.9,10.74818423]
[1673421054480,1.70080803,1334.0,1333.9,3.25137423]
[1673421054688,1.70080803,1334.0,1333.9,3.18537423]
[1673421056283,1.70080803,1334.0,1333.9,4.30705952]
[1673421056508,1.70280803,1334.0,1333.9,3.18537423]
[1673421056832,1.70080803,1334.0,1333.9,3.18537423]
[1673421060904,1.70080803,1334.0,1333.8,1.19710615]
[1673421061110,1.70080803,1334.0,1333.8,4.13110615]
[1673421067526,1.70080803,1334.0,1333.8,4.12168529]
[1673421067704,2.82260273,1334.0,1333.8,3.0]
[1673421068438,4.507706,1334.0,1333.8,3.0]
[1673421068647,2.82260273,1334.0,1333.8,3.0]
[1673421070276,2.82260273,1334.0,1333.8,5.52434174]
[1673421070491,2.82260273,1334.0,1333.8,5.59034174]
[1673421071831,2.82260273,1334.0,1333.8,3.066]
[1673421072040,2.82260273,1334.0,1333.8,3.0]
[1673421074549,2.82260273,1334.0,1333.8,10.49734]
[1673421074896,2.82260273,1334.0,1333.8,11.68502529]
[1673421074897,1.69810688,1334.0,1333.8,11.68502529]
[1673421075057,1.69810688,1334.0,1333.9,1.85991083]
[1673421076212,1.69810688,1334.0,1333.8,11.68504529]
[1673421076466,1.69810688,1334.0,1333.9,1.85991807]
[1673421081023,1.69810688,1334.0,1333.8,13.70614375]
[1673421081233,1.69810688,1334.0,1333.9,1.85991714]
[1673421083089,1.69810688,1334.0,1333.8,13.70614375]
[1673421083318,1.69810688,1334.0,1333.9,1.85992149]
[1673421086881,2.81990158,1334.0,1333.9,1.85992149]
[1673421089740,26.99375485,1334.0,1333.8,3.066]
[1673421089903,12.77825995,1334.0,1333.8,3.0]
[1673421090115,12.06725485,1334.0,1333.8,3.0]
[1673421090450,4.57100485,1334.0,1333.8,3.0]
[1673421090662,4.50500485,1334.0,1333.8,3.0]
[1673421091256,5.21600995,1334.0,1333.8,3.0]
[1673421091466,1.1217947,1333.9,1333.8,3.0]
[1673421091801,16.1154147,1333.9,1333.8,4.86005509]
[1673421091992,16.1814147,1333.9,1333.8,4.86005509]
[1673421092205,16.1814147,1333.9,1333.8,1.86011276]
[1673421092867,8.6846047,1333.9,1333.8,1.86011276]
[1673421093310,3.6877947,1333.9,1333.8,1.86011276]
[1673421093620,38.31105877,1333.9,1333.7,0.066]
[1673421093840,29.77206939,1333.8,1333.5,1.18768529]
[1673421093992,21.15281018,1333.7,1333.4,11.17918529]
[1673421094200,1.12378515,1333.6,1333.5,1.86053602]
[1673421095624,23.68466515,1333.7,1333.4,10.0575]
[1673421095832,22.33311001,1333.7,1333.6,0.00220522]
[1673421096140,10.36386515,1333.7,1333.6,0.00220522]
[1673421096307,12.86386515,1333.7,1333.6,0.00220522]
[1673421097266,11.74008,1333.7,1333.6,0.00220522]
[1673421097930,19.23826,1333.7,1333.6,0.00220522]
[1673421098118,20.36204515,1333.7,1333.6,0.00220522]
[1673421098300,27.86022515,1333.7,1333.6,0.00220522]
[1673421098510,21.07305025,1333.7,1333.6,0.00220522]
[1673421098721,20.36204515,1333.7,1333.6,0.00220522]
[1673421100614,32.33109001,1333.7,1333.6,0.00220522]
[1673421100821,7.49906,1333.5,1333.4,10.0575]
[1673421101032,7.49906,1333.5,1333.4,0.066]
[1673421101033,7.56506,1333.5,1333.4,0.066]
[1673421101292,7.56506,1333.5,1333.3,13.617]
[1673421101668,7.56506,1333.5,1333.3,3.066]
[1673421101904,7.56506,1333.5,1333.3,3.0]
[1673421102109,15.06412,1333.5,1333.3,3.0]
[1673421102299,0.066,1333.5,1333.3,3.0]
[1673421102513,15.06480864,1333.6,1333.3,3.0]
[1673421103356,7.56598864,1333.6,1333.3,3.0]
[1673421103563,15.06479864,1333.6,1333.3,3.0]
[1673421103906,0.06745864,1333.6,1333.3,10.5]
[1673421104136,0.00145864,1333.6,1333.3,15.19120074]
[1673421104817,0.00145864,1333.6,1333.4,2.5]
[1673421105281,0.00145864,1333.6,1333.4,9.9995]
[1673421105502,0.00145864,1333.6,1333.4,10.0655]
[1673421106960,0.00145864,1333.6,1333.4,2.566]
[1673421107214,0.00145864,1333.6,1333.3,12.85881799]
[1673421107426,22.49723864,1333.6,1333.3,8.23361725]
[1673421107595,15.06459864,1333.6,1333.3,3.066]
[1673421107805,15.06459864,1333.6,1333.3,3.0]
[1673421108262,0.06745864,1333.6,1333.3,3.0]
[1673421108584,0.00145864,1333.6,1333.3,12.62525074]
[1673421108790,0.00145864,1333.6,1333.3,10.56605]
[1673421109003,0.00145864,1333.6,1333.3,20.19143074]
[1673421109901,0.00145864,1333.6,1333.4,2.5]
[1673421110141,0.00145864,1333.6,1333.4,9.99961]
[1673421110353,0.00145864,1333.6,1333.4,2.566]
[1673421110561,7.50000864,1333.6,1333.3,7.69120074]
[1673421110777,0.06745864,1333.6,1333.3,17.67144536]
[1673421110982,0.00145864,1333.6,1333.3,17.67144536]
[1673421111195,0.00145864,1333.6,1333.4,2.5]
[1673421112214,0.00145864,1333.6,1333.3,17.67144536]
[1673421112215,1.691,1333.5,1333.3,3.066]
[1673421112421,9.1903,1333.5,1333.3,3.0]
[1673421112667,9.2563,1333.5,1333.3,3.0]
[1673421113098,9.2563,1333.5,1333.3,10.5001]
[1673421113099,1.757,1333.5,1333.3,10.5001]
[1673421113313,1.691,1333.5,1333.3,10.5661]
[1673421113937,1.691,1333.5,1333.3,3.066]
[1673421114261,1.691,1333.5,1333.3,3.0]
[1673421118839,1.691,1333.5,1333.3,2.99788879]
[1673421119463,1.691,1333.5,1333.3,10.49794879]
[1673421119691,1.691,1333.5,1333.3,12.69024751]
[1673421119933,1.691,1333.5,1333.3,10.56394879]
[1673421120109,1.691,1333.5,1333.3,12.69011628]
[1673421121484,1.691,1333.5,1333.3,10.56394879]
[1673421122425,1.691,1333.5,1333.3,3.06388879]
[1673421122790,1.691,1333.5,1333.3,2.99788879]
[1673421124476,24.25466864,1333.6,1333.3,2.99788879]
[1673421124679,28.7255335,1333.6,1333.3,2.99788879]
[1673421125488,21.2266635,1333.6,1333.3,2.99788879]
[1673421127165,16.75579864,1333.6,1333.3,2.99788879]
[1673421127386,9.25699864,1333.6,1333.3,12.62693372]
[1673421127690,1.75845864,1333.6,1333.3,12.69293372]
[1673421127915,1.69245864,1333.6,1333.3,12.69293372]
[1673421128308,1.69245864,1333.6,1333.3,10.56403879]
[1673421128309,2.81624379,1333.6,1333.3,10.56403879]
[1673421129600,7.28710865,1333.6,1333.3,10.56403879]
[1673421129808,15.50257622,1333.6,1333.3,3.06388879]
[1673421130146,15.50257622,1333.6,1333.3,5.12884587]
[1673421130351,15.50257622,1333.6,1333.3,12.69494587]
[1673421130352,11.03171136,1333.6,1333.3,12.69494587]
[1673421130526,2.88224379,1333.6,1333.3,20.19512587]
[1673421130741,2.81624379,1333.6,1333.3,20.19512587]
[1673421131144,1.69245864,1333.6,1333.3,21.31681116]
[1673421131359,2.81624379,1333.6,1333.4,1.86058412]
[1673421133309,1.12378515,1333.5,1333.4,1.86058412]
[1673421133481,7.7193092,1333.6,1333.4,1.86058412]
[1673421133704,5.2193092,1333.6,1333.4,1.86058412]
[1673421134339,1.12378515,1333.5,1333.4,1.86058412]
[1673421134669,4.09552405,1333.6,1333.4,9.36013412]
[1673421134670,5.2193092,1333.6,1333.4,9.36013412]
[1673421134823,4.56768911,1333.6,1333.4,7.56555]
[1673421135036,4.50168911,1333.6,1333.4,7.56555]
[1673421136510,4.50168911,1333.6,1333.4,0.066]
[1673421136719,4.50168911,1333.6,1333.3,22.99631482]
[1673421136720,4.50368911,1333.6,1333.3,22.99631482]
[1673421137032,1.12378515,1333.5,1333.4,1.86060029]
[1673421137892,5.2193092,1333.6,1333.4,1.86060029]
[1673421138126,4.56768911,1333.6,1333.4,1.86060029]
[1673421138448,4.50168911,1333.6,1333.4,1.86060029]
[1673421138671,1.12378515,1333.5,1333.4,1.86060029]
[1673421138965,1.12378515,1333.5,1333.4,16.85984029]
[1673421139183,4.56768911,1333.6,1333.4,1.92660029]
[1673421139338,4.50168911,1333.6,1333.3,22.99825482]
[1673421139564,4.50168911,1333.6,1333.4,1.86059474]
[1673421139772,1.12378515,1333.5,1333.4,1.86059474]
[1673421140757,1.12378515,1333.5,1333.3,13.81639116]
[1673421140758,2.80923047,1333.5,1333.3,13.81639116]
[1673421140981,1.12378515,1333.5,1333.3,13.81639116]
[1673421141892,1.12378515,1333.5,1333.4,1.86067606]
[1673421142101,1.12378515,1333.5,1333.4,1.86067518]
[1673421143785,3.62005626,1333.5,1333.4,1.86067518]
[1673421144007,11.59403405,1333.6,1333.4,1.86067518]
[1673421144259,14.09403405,1333.6,1333.4,1.86067518]
[1673421144414,6.59552405,1333.6,1333.4,1.86067518]
[1673421144840,2.5,1333.5,1333.4,1.86067518]
[1673421145786,2.502,1333.5,1333.4,1.86067518]
[1673421145994,2.5,1333.5,1333.4,1.86067518]
[1673421148417,19.18356532,1333.5,1333.3,3.06388879]
[1673421148790,19.24956532,1333.5,1333.3,2.99788879]
[1673421151776,19.24956532,1333.5,1333.2,21.54997177]
[1673421152045,21.49636968,1333.5,1333.3,1.86081119]
[1673421152413,19.24956532,1333.5,1333.3,1.86081119]
[1673421153668,1.12385106,1333.4,1333.3,1.86081119]
[1673421155370,8.62347106,1333.4,1333.2,21.54997177]
[1673421155584,8.68947106,1333.4,1333.2,11.14477177]
[1673421155812,8.68947106,1333.4,1333.3,1.86081796]
[1673421156566,1.18985106,1333.4,1333.3,1.86081796]
[1673421156879,20.37341638,1333.5,1333.3,1.86081796]
[1673421157252,12.87435638,1333.5,1333.3,1.86081796]
[1673421157701,20.37367638,1333.5,1333.3,1.86081796]
[1673421158508,1.12385106,1333.4,1333.3,1.86081796]
[1673421158874,27.87314638,1333.5,1333.3,1.86081796]
[1673421159187,1.12385106,1333.4,1333.3,1.86081796]
[1673421160990,20.37367638,1333.5,1333.3,1.86081796]
[1673421162564,22.05167638,1333.5,1333.3,1.86081796]
[1673421163258,10.36691106,1333.5,1333.3,1.86081796]
[1673421163466,10.36691106,1333.5,1333.3,2.98250325]
[1673421169804,2.86785106,1333.5,1333.3,2.98250325]
[1673421169976,1.12385106,1333.5,1333.3,5.4144243]
[1673421170195,1.12385106,1333.5,1333.4,1.86081796]
[1673421170403,12.72159892,1333.6,1333.4,1.86081796]
[1673421171026,1.12385106,1333.5,1333.4,1.86081796]
[1673421171489,1.12385106,1333.5,1333.3,2.98250325]
[1673421171708,1.12385106,1333.5,1333.3,7.13858897]
[1673421171923,1.12385106,1333.5,1333.4,1.86081796]
[1673421172600,1.12385106,1333.5,1333.3,2.98250325]
[1673421173251,1.12385106,1333.5,1333.3,10.48256325]
[1673421173469,1.12385106,1333.5,1333.4,1.86081796]
[1673421175756,1.12385106,1333.5,1333.3,4.66448691]
[1673421175963,1.12385106,1333.5,1333.4,1.86081796]
[1673421180695,1.12385106,1333.5,1333.3,4.66448691]
[1673421180905,1.12385106,1333.5,1333.4,1.86081796]
[1673421181163,1.12385106,1333.5,1333.3,2.98250325]
[1673421181381,1.12385106,1333.5,1333.4,1.86081796]
[1673421183162,1.12385106,1333.5,1333.3,2.98250325]
[1673421183371,1.12385106,1333.5,1333.4,1.86081796]
[1673421184195,1.12385106,1333.5,1333.3,4.73048691]
[1673421184422,1.12385106,1333.5,1333.4,1.86081796]
[1673421188451,1.12585106,1333.5,1333.4,1.86081796]
[1673421188615,1.12385106,1333.5,1333.4,1.86081796]
[1673421189047,12.72014028,1333.6,1333.4,1.86081796]
[1673421189274,11.02914028,1333.6,1333.4,1.86081796]
[1673421189660,3.52691647,1333.6,1333.4,1.86081796]
[1673421189870,3.52691647,1333.6,1333.4,16.85974796]
[1673421189871,2.80929638,1333.6,1333.4,16.85974796]
[1673421190129,2.80929638,1333.6,1333.4,15.06493]
[1673421190710,1.12385106,1333.6,1333.4,15.06493]
[1673421190926,2.80929638,1333.6,1333.4,15.06493]
[1673421191455,1.12385106,1333.6,1333.4,15.06493]
[1673421192220,2.80929638,1333.6,1333.4,7.56531]
[1673421192437,1.12385106,1333.6,1333.4,7.56531]
[1673421194833,1.12385106,1333.6,1333.4,1.18768529]
[1673421195062,1.12385106,1333.6,1333.4,1.12168529]
[1673421195231,1.12385106,1333.6,1333.4,2.98223422]
[1673421195445,1.77547115,1333.6,1333.4,2.98223422]
[1673421195796,3.46091647,1333.6,1333.3,12.50050603]
[1673421196006,3.46091647,1333.6,1333.4,1.8605629]
[1673421196600,1.77547115,1333.6,1333.4,1.8605629]
[1673421196839,2.80929638,1333.6,1333.4,2.98224819]
[1673421198512,1.77547115,1333.6,1333.4,2.98224819]
[1673421198951,3.46091647,1333.6,1333.4,2.98224819]
[1673421199908,3.46091647,1333.6,1333.3,14.61956623]
[1673421200225,10.95946647,1333.6,1333.4,1.86056567]
[1673421200448,11.02546647,1333.6,1333.4,1.86056567]
[1673421200909,11.02546647,1333.6,1333.4,2.98225096]
[1673421201645,10.37384638,1333.6,1333.4,2.98225096]
[1673421201855,11.02546647,1333.6,1333.4,2.98225096]
[1673421202640,11.02546647,1333.6,1333.3,7.11968623]
[1673421202829,11.02546647,1333.6,1333.4,2.98226458]
[1673421203380,11.02546647,1333.6,1333.3,9.25064331]